bitfinex/quotes_BTCUSD_20240607
["timestamp","ask_amount","ask_price","bid_price","bid_amount"]
[1717754417395,0.00253563,71309.0,71308.0,2.00130221]
[1717754417850,0.04634872,71315.0,71310.0,0.280462]
[1717754418079,0.04634872,71315.0,71314.0,0.348649]
[1717754418305,0.04634872,71315.0,71314.0,1.42903305]
[1717754418528,0.04634872,71316.0,71314.0,0.75091105]
[1717754418791,0.04634872,71316.0,71315.0,0.55522103]
[1717754419000,0.04634872,71316.0,71315.0,0.68271105]
[1717754419218,0.04634872,71318.0,71315.0,0.68266863]
[1717754419469,0.04634872,71318.0,71317.0,0.0682]
[1717754419699,0.04634872,71318.0,71317.0,0.64638236]
[1717754419922,0.004,71319.0,71318.0,0.140217]
[1717754420153,0.004,71319.0,71318.0,1.06858223]
[1717754420376,0.004,71319.0,71318.0,1.52496736]
[1717754420599,0.004,71319.0,71318.0,1.59316736]
[1717754421453,0.004,71319.0,71318.0,1.90945485]
[1717754421676,0.004,71319.0,71318.0,1.87360136]
[1717754422844,0.004,71319.0,71318.0,1.88760136]
[1717754423062,0.004,71319.0,71318.0,1.90160136]
[1717754423943,0.004,71319.0,71318.0,1.88760136]
[1717754424572,0.004,71319.0,71318.0,1.87360136]
[1717754424788,0.004,71319.0,71318.0,1.88760136]
[1717754424955,0.004,71319.0,71318.0,1.90160136]
[1717754425343,0.004,71319.0,71318.0,1.88760136]
[1717754425756,0.004,71319.0,71318.0,1.90160136]
[1717754426168,0.004,71319.0,71318.0,1.88760136]
[1717754426605,0.004,71319.0,71318.0,1.90160136]
[1717754427237,0.004,71319.0,71318.0,2.00596628]
[1717754427850,0.004,71319.0,71318.0,2.00594558]
[1717754429126,0.004,71319.0,71318.0,2.00593647]
[1717754429547,0.004,71319.0,71318.0,1.90157758]
[1717754431480,0.04834872,71319.0,71318.0,1.91865499]
[1717754431680,0.06974123,71319.0,71318.0,1.32432099]
[1717754431944,0.06974123,71319.0,71318.0,0.87646806]
[1717754432083,0.06974123,71319.0,71318.0,0.85939065]
[1717754432290,0.05898173,71319.0,71318.0,0.85939065]
[1717754432495,0.05898173,71319.0,71318.0,0.65859598]
[1717754432699,0.04434872,71319.0,71318.0,0.616851]
[1717754432900,0.45854272,71320.0,71319.0,0.420645]
[1717754433270,0.45854272,71320.0,71319.0,0.520645]
[1717754433918,0.47117573,71320.0,71319.0,0.520645]
[1717754434324,0.47117573,71320.0,71319.0,0.57638566]
[1717754434755,0.45654272,71320.0,71319.0,1.32976283]
[1717754434959,0.412194,71320.0,71319.0,1.21579393]
[1717754436232,0.412194,71320.0,71319.0,1.22979393]
[1717754437856,0.45854272,71320.0,71319.0,0.99649393]
[1717754438197,0.412194,71320.0,71319.0,0.99649393]
[1717754439908,0.413054,71320.0,71319.0,0.99649393]
[1717754442176,0.413054,71320.0,71319.0,1.0591004]
[1717754442394,0.45940272,71320.0,71319.0,1.06469393]
[1717754442821,0.45940272,71320.0,71319.0,1.1273004]
[1717754443049,0.45740272,71320.0,71319.0,1.0591004]
[1717754443261,0.45740272,71320.0,71319.0,1.1273004]
[1717754443262,0.45940272,71320.0,71319.0,1.1273004]
[1717754443894,0.47203573,71320.0,71319.0,1.06469393]
[1717754444116,0.45940272,71320.0,71319.0,1.06469393]
[1717754444538,0.45740272,71320.0,71319.0,1.06469393]
[1717754444968,0.45940272,71320.0,71319.0,1.06469393]
[1717754445180,0.413054,71320.0,71319.0,1.06469393]
[1717754446051,0.45940272,71320.0,71319.0,1.1273004]
[1717754446227,0.413054,71320.0,71319.0,1.1273004]
[1717754447230,0.413054,71320.0,71319.0,1.43804818]
[1717754447390,0.413054,71320.0,71319.0,1.37544171]
[1717754448237,0.413054,71320.0,71319.0,1.458917]
[1717754450369,0.45940272,71320.0,71319.0,1.458917]
[1717754450584,0.47203573,71320.0,71319.0,1.458917]
[1717754450801,0.45940272,71320.0,71319.0,1.458917]
[1717754451018,0.47203573,71320.0,71319.0,1.458917]
[1717754451233,0.45940272,71320.0,71319.0,1.458917]
[1717754451439,0.47203573,71320.0,71319.0,1.458917]
[1717754451827,0.47203573,71320.0,71319.0,1.515024]
[1717754452250,0.45940272,71320.0,71319.0,1.515024]
[1717754453364,0.45940272,71320.0,71319.0,1.43154871]
[1717754453791,0.45908229,71320.0,71319.0,1.43154871]
[1717754454369,0.41273357,71320.0,71319.0,1.43154871]
[1717754455585,0.41273357,71320.0,71319.0,1.72248214]
[1717754455813,0.45908229,71320.0,71319.0,1.72248214]
[1717754456019,0.41273357,71320.0,71319.0,1.82682626]
[1717754456237,0.41273357,71320.0,71319.0,1.72248214]
[1717754457262,0.41273357,71320.0,71319.0,2.24151214]
[1717754460283,0.41273357,71320.0,71319.0,2.17331214]
[1717754460566,0.41273357,71320.0,71319.0,2.24151214]
[1717754461852,0.41273357,71320.0,71319.0,2.36672508]
[1717754462264,0.41273357,71320.0,71319.0,2.24151214]
[1717754463758,0.41273357,71320.0,71319.0,1.91171214]
[1717754463976,0.41273357,71320.0,71319.0,1.20643321]
[1717754463977,0.4717153,71320.0,71319.0,1.20643321]
[1717754464180,0.4717153,71320.0,71319.0,1.15032621]
[1717754464394,0.5717153,71320.0,71319.0,0.57896278]
[1717754464634,0.5817153,71320.0,71319.0,0.33095446]
[1717754464834,0.5817153,71320.0,71319.0,0.268215]
[1717754465893,0.5717153,71320.0,71319.0,0.268215]
[1717754466761,0.5817153,71320.0,71319.0,0.268215]
[1717754466955,0.6817153,71320.0,71319.0,0.268215]
[1717754467189,0.7499153,71320.0,71319.0,0.028]
[1717754467913,0.7499153,71320.0,71319.0,0.014]
[1717754468174,0.7499153,71320.0,71311.0,0.18204683]
[1717754468175,0.7499153,71320.0,71311.0,0.140229]
[1717754468400,0.16898173,71312.0,71311.0,0.140229]
[1717754469095,0.16898173,71312.0,71311.0,0.240229]
[1717754469982,0.16898173,71312.0,71311.0,0.254229]
[1717754470845,0.16898173,71312.0,71311.0,0.268229]
[1717754471490,0.05898173,71312.0,71311.0,0.268229]
[1717754472766,0.05898173,71312.0,71311.0,0.269175]
[1717754474094,0.06898173,71312.0,71311.0,0.269175]
[1717754474327,0.05898173,71312.0,71311.0,0.269175]
[1717754475289,0.0659935,71312.0,71311.0,0.269175]
[1717754475492,0.15898173,71312.0,71311.0,0.269175]
[1717754476540,0.16898173,71312.0,71311.0,0.269175]
[1717754476753,0.15898173,71312.0,71311.0,0.269175]
[1717754485351,0.15898173,71312.0,71311.0,0.549636]
[1717754492859,0.25898173,71312.0,71311.0,0.549636]
[1717754499098,0.26898173,71312.0,71311.0,0.269175]
[1717754499339,0.26898173,71312.0,71311.0,0.169175]
[1717754499564,0.26898173,71312.0,71311.0,0.028946]
[1717754499565,0.33718173,71312.0,71311.0,0.028946]
[1717754500449,0.33718173,71312.0,71311.0,0.000946]
[1717754500903,0.33718173,71312.0,71311.0,0.028946]
[1717754501551,0.62182866,71312.0,71311.0,0.028946]
[1717754502456,0.82182866,71312.0,71311.0,0.014946]
[1717754503141,0.55362866,71312.0,71311.0,0.014946]
[1717754503364,0.82182866,71312.0,71311.0,0.028946]
[1717754503582,0.62182866,71312.0,71311.0,0.028946]
[1717754504014,0.82182866,71312.0,71311.0,0.028946]
[1717754504432,0.62182866,71312.0,71311.0,0.028946]
[1717754504582,0.82182866,71312.0,71311.0,0.028946]
[1717754511522,0.82182866,71312.0,71311.0,0.014946]
[1717754512533,0.82182866,71312.0,71311.0,0.000946]
[1717754512999,0.82182866,71312.0,71311.0,0.013946]
[1717754513165,0.82182866,71312.0,71311.0,0.027946]
[1717754515386,0.85229448,71312.0,71311.0,0.027946]
[1717754515782,0.82182866,71312.0,71311.0,0.027946]
[1717754516979,1.24988566,71312.0,71311.0,0.027946]
[1717754517173,1.18168566,71312.0,71311.0,0.027946]
[1717754517630,1.24988566,71312.0,71311.0,0.027946]
[1717754521960,0.98168566,71312.0,71311.0,0.027946]
[1717754522163,1.24988566,71312.0,71311.0,0.027946]
[1717754523217,1.04988566,71312.0,71311.0,0.027946]
[1717754523426,0.55362866,71312.0,71311.0,0.027946]
[1717754523855,0.62182866,71312.0,71311.0,0.027946]
[1717754526720,0.82182866,71312.0,71311.0,0.027946]
[1717754526925,0.62182866,71312.0,71311.0,0.027946]
[1717754527128,0.55284693,71312.0,71311.0,0.027946]
[1717754527334,0.62182866,71312.0,71311.0,0.027946]
[1717754531003,0.82182866,71312.0,71311.0,0.027946]
[1717754531216,0.62182866,71312.0,71311.0,0.027946]
[1717754531907,0.55362866,71312.0,71311.0,0.027946]
[1717754532129,0.62182866,71312.0,71311.0,0.027946]
[1717754532565,0.82182866,71312.0,71311.0,0.027946]
[1717754533280,0.62182866,71312.0,71311.0,0.027946]
[1717754534355,0.82182866,71312.0,71311.0,0.027946]
[1717754534772,0.62182866,71312.0,71311.0,0.027946]
[1717754534988,0.55284693,71312.0,71311.0,0.027946]
[1717754535641,0.82182866,71312.0,71311.0,0.027946]
[1717754535845,0.96942866,71312.0,71311.0,0.027946]
[1717754536059,1.34988566,71312.0,71311.0,0.027946]
[1717754537163,1.34988566,71312.0,71311.0,0.014946]
[1717754537432,1.34988566,71312.0,71311.0,0.009946]
[1717754537868,1.34988566,71312.0,71311.0,0.020946]
[1717754540481,1.18168566,71312.0,71311.0,0.020946]
[1717754540715,1.24988566,71312.0,71311.0,0.020946]
[1717754546965,1.3944991,71312.0,71311.0,0.020946]
[1717754547175,1.45886192,71312.0,71311.0,0.020946]
[1717754547389,1.52194897,71312.0,71311.0,0.020946]
[1717754547614,1.77495362,71312.0,71311.0,0.020946]
[1717754548073,1.96701579,71312.0,71311.0,0.020946]
[1717754548332,1.86186657,71312.0,71311.0,0.020946]
[1717754548781,1.86186657,71312.0,71311.0,0.011946]
[1717754549215,1.86186657,71312.0,71311.0,0.000946]
[1717754549436,1.86486657,71312.0,71311.0,0.000946]
[1717754550093,1.86186657,71312.0,71311.0,0.000946]
[1717754550276,2.01198444,71312.0,71311.0,0.000946]
[1717754550481,2.09597871,71312.0,71311.0,0.000946]
[1717754550691,2.09797871,71312.0,71311.0,0.000946]
[1717754550901,2.09297871,71312.0,71311.0,0.000946]
[1717754551111,1.94786084,71312.0,71311.0,0.000946]
[1717754551309,1.95286084,71312.0,71311.0,0.000946]
[1717754552192,1.94586084,71312.0,71311.0,0.000946]
[1717754552426,1.95086084,71312.0,71311.0,0.000946]
[1717754552641,1.95586084,71312.0,71311.0,0.000946]
[1717754552863,1.9558495,71312.0,71311.0,0.000946]
[1717754553949,1.9508495,71312.0,71311.0,0.000946]
[1717754554177,1.9558495,71312.0,71311.0,0.000946]
[1717754554387,2.01226795,71312.0,71311.0,0.000946]
[1717754554602,1.9558495,71312.0,71311.0,0.000946]
[1717754555242,1.87176251,71312.0,71311.0,0.000946]
[1717754555453,1.80356251,71312.0,71311.0,0.000946]
[1717754555661,1.87176251,71312.0,71311.0,0.000946]
[1717754558456,1.87176178,71312.0,71311.0,0.000946]
[1717754558843,1.90464365,71312.0,71311.0,0.000946]
[1717754559266,1.96768832,71312.0,71311.0,0.000946]
[1717754559466,1.94575364,71312.0,71311.0,0.000946]
[1717754559945,2.00833523,71312.0,71311.0,0.000946]
[1717754560132,1.98639951,71312.0,71311.0,0.000946]
[1717754561636,1.95351764,71312.0,71311.0,0.000946]
[1717754562272,1.88531764,71312.0,71311.0,0.000946]
[1717754562697,1.95351199,71312.0,71311.0,0.000946]
[1717754562930,1.83098853,71312.0,71311.0,0.000946]
[1717754564248,1.48233153,71312.0,71311.0,0.000946]
[1717754564465,1.55053153,71312.0,71311.0,0.000946]
[1717754566975,1.6956494,71312.0,71311.0,0.000946]
[1717754567229,1.55053153,71312.0,71311.0,0.000946]
[1717754571566,1.2815498,71312.0,71311.0,0.000946]
[1717754572001,1.2947903,71312.0,71311.0,0.000946]
[1717754572192,1.55053153,71312.0,71311.0,0.000946]
[1717754572446,1.34142106,71312.0,71311.0,0.000946]
[1717754572651,1.54220279,71312.0,71311.0,0.000946]
[1717754572861,1.35053153,71312.0,71311.0,0.000946]
[1717754573070,1.25053153,71312.0,71311.0,0.000946]
[1717754573281,1.310423,71312.0,71311.0,0.162246]
[1717754573498,1.25053153,71312.0,71311.0,0.162246]
[1717754573936,1.45053153,71312.0,71311.0,0.162246]
[1717754574393,1.51038832,71312.0,71311.0,0.162246]
[1717754575110,1.31038832,71312.0,71311.0,0.162246]
[1717754575536,1.25053153,71312.0,71311.0,0.162246]
[1717754575714,1.10053153,71312.0,71311.0,0.162246]
[1717754576833,1.16036355,71312.0,71311.0,0.162246]
[1717754577484,0.95293153,71312.0,71311.0,0.162246]
[1717754577713,0.88473153,71312.0,71311.0,0.162246]
[1717754577937,0.95293153,71312.0,71311.0,0.243846]
[1717754578860,0.95328415,71312.0,71311.0,0.243846]
[1717754582724,0.99533748,71312.0,71311.0,0.243846]
[1717754583168,0.95328415,71312.0,71311.0,0.243846]
[1717754584700,0.88430242,71312.0,71311.0,0.243846]
[1717754585131,0.95328415,71312.0,71311.0,0.243846]
[1717754586231,0.99533748,71312.0,71311.0,0.243846]
[1717754588373,0.99534625,71312.0,71311.0,0.243846]
[1717754589442,0.95328415,71312.0,71311.0,0.243846]
[1717754590750,0.95315887,71312.0,71311.0,0.243846]
[1717754591402,0.91228566,71312.0,71311.0,0.243846]
[1717754591643,0.95315889,71312.0,71311.0,0.243846]
[1717754592056,0.67270189,71312.0,71311.0,0.243846]
[1717754592892,0.60372016,71312.0,71311.0,0.243846]
[1717754593296,0.53552016,71312.0,71311.0,0.243846]
[1717754593502,0.60372016,71312.0,71311.0,0.243846]
[1717754595032,0.66270189,71312.0,71311.0,0.243846]
[1717754595249,0.60372016,71312.0,71311.0,0.243846]
[1717754596360,0.67270189,71312.0,71311.0,0.243846]
[1717754597072,0.45427389,71312.0,71311.0,0.243846]
[1717754597284,0.29722195,71312.0,71311.0,0.243846]
[1717754597502,0.29522195,71312.0,71311.0,0.243846]
[1717754597718,0.29722195,71312.0,71311.0,0.384076]
[1717754597930,0.25134872,71312.0,71311.0,0.334076]
[1717754598178,0.2,71312.0,71311.0,0.334076]
[1717754598387,0.203,71312.0,71311.0,0.334076]
[1717754598590,0.207,71312.0,71311.0,0.334076]
[1717754599433,0.207,71312.0,71311.0,0.341076]
[1717754599867,0.207,71312.0,71311.0,0.342022]
[1717754600286,0.204,71312.0,71311.0,0.342022]
[1717754600719,0.204,71312.0,71311.0,0.350022]
[1717754602424,0.25034872,71312.0,71311.0,0.350022]
[1717754603494,0.26298173,71312.0,71311.0,0.350022]
[1717754604584,0.25034872,71312.0,71311.0,0.350022]
[1717754605216,0.26298173,71312.0,71311.0,0.350022]
[1717754612044,0.33118173,71312.0,71311.0,0.209792]
[1717754612668,0.26298173,71312.0,71311.0,0.209792]
[1717754614251,0.26298173,71312.0,71311.0,0.350022]
[1717754616291,0.25034872,71312.0,71311.0,0.350022]
[1717754618597,0.204,71312.0,71311.0,0.350022]
[1717754619007,0.25034872,71312.0,71311.0,0.350022]
[1717754624662,0.26298173,71312.0,71311.0,0.350022]
[1717754627000,0.204,71312.0,71311.0,0.350022]
[1717754627214,0.26298173,71312.0,71311.0,0.350022]
[1717754629555,0.30355474,71312.0,71311.0,0.350022]
[1717754630441,0.30356257,71312.0,71311.0,0.350022]
[1717754631540,0.30356257,71312.0,71311.0,0.156176]
[1717754636068,0.26298173,71312.0,71311.0,0.156176]
[1717754636284,0.30358598,71312.0,71311.0,0.156176]
[1717754637397,0.24460425,71312.0,71311.0,0.156176]
[1717754637825,0.204,71312.0,71311.0,0.156176]
[1717754638067,0.24460008,71312.0,71311.0,0.156176]
[1717754638427,0.204,71312.0,71311.0,0.156176]
[1717754638643,0.204,71312.0,71311.0,0.015946]
[1717754638644,0.44799985,71312.0,71311.0,0.015946]
[1717754638856,0.50699985,71312.0,71311.0,0.015946]
[1717754639053,0.64722785,71312.0,71311.0,0.015946]
[1717754640890,0.64322785,71312.0,71311.0,0.008946]
[1717754641299,0.64322785,71312.0,71311.0,0.015946]
[1717754641729,0.64322785,71312.0,71311.0,0.007946]
[1717754641929,0.64422785,71312.0,71311.0,0.008946]
[1717754642140,0.64422785,71312.0,71311.0,0.013946]
[1717754642365,0.64322785,71312.0,71311.0,0.005946]
[1717754642572,0.64322785,71312.0,71311.0,0.011946]
[1717754644531,0.60262866,71312.0,71311.0,0.011946]
[1717754644757,0.64326479,71312.0,71311.0,0.011946]
[1717754645189,0.63326479,71312.0,71311.0,0.011946]
[1717754645402,0.64326479,71312.0,71311.0,0.011946]
[1717754646470,0.63326479,71312.0,71311.0,0.011946]
[1717754646676,0.64326479,71312.0,71311.0,0.011946]
[1717754646897,0.63326479,71312.0,71311.0,0.011946]
[1717754647102,0.64326479,71312.0,71311.0,0.011946]
[1717754647794,0.58426479,71312.0,71311.0,0.011946]
[1717754648003,0.65246479,71312.0,71311.0,0.254746]
[1717754656139,0.61182866,71312.0,71311.0,0.254746]
[1717754656363,0.65238283,71312.0,71311.0,0.254746]
[1717754657406,0.66238283,71312.0,71311.0,0.254746]
[1717754658025,0.65238283,71312.0,71311.0,0.088146]
[1717754661419,0.44395483,71312.0,71311.0,0.089846]
[1717754661627,0.51215483,71312.0,71311.0,0.089846]
[1717754662789,0.51301483,71312.0,71311.0,0.089846]
[1717754662998,0.44481483,71312.0,71311.0,0.250946]
[1717754663641,0.3003959,71312.0,71311.0,0.250946]
[1717754663849,0.28776289,71312.0,71311.0,0.250946]
[1717754664092,0.3003959,71312.0,71311.0,0.250946]
[1717754668971,0.30017759,71312.0,71311.0,0.250946]
[1717754670379,0.31017759,71312.0,71311.0,0.250946]
[1717754670576,0.30017759,71312.0,71311.0,0.250946]
[1717754671988,0.36837759,71312.0,71311.0,0.250946]
[1717754673203,0.36830657,71312.0,71311.0,0.250946]
[1717754673627,0.36830657,71312.0,71311.0,0.011946]
[1717754674083,0.5127255,71312.0,71311.0,0.011946]
[1717754674285,0.5227255,71312.0,71311.0,0.011946]
[1717754676632,0.6629535,71312.0,71311.0,0.011946]
[1717754678281,0.66286542,71312.0,71311.0,0.011946]
[1717754681341,0.59388369,71312.0,71311.0,0.011946]
[1717754681556,0.66286542,71312.0,71311.0,0.011946]
[1717754682183,0.59466542,71312.0,71311.0,0.011946]
[1717754682344,0.66286542,71312.0,71311.0,0.011946]
[1717754683012,0.59588369,71312.0,71311.0,0.011946]
[1717754683204,0.66286542,71312.0,71311.0,0.011946]
[1717754683360,0.59388369,71312.0,71311.0,0.011946]
[1717754683975,0.66286542,71312.0,71311.0,0.011946]
[1717754684596,0.59388369,71312.0,71311.0,0.011946]
[1717754687050,0.66285253,71312.0,71311.0,0.011946]
[1717754688547,0.55370693,71312.0,71311.0,0.011946]
[1717754688755,0.59387461,71312.0,71311.0,0.011946]
[1717754689179,0.66285634,71312.0,71311.0,0.011946]
[1717754689788,0.59387461,71312.0,71311.0,0.011946]
[1717754690384,0.59385794,71312.0,71311.0,0.011946]
[1717754690562,0.66283967,71312.0,71311.0,0.011946]
[1717754690960,0.59385794,71312.0,71311.0,0.011946]
[1717754691330,0.66283967,71312.0,71311.0,0.011946]
[1717754692306,0.59385794,71312.0,71311.0,0.011946]
[1717754692677,0.66283967,71312.0,71311.0,0.011946]
[1717754693489,0.59385794,71312.0,71311.0,0.011946]
[1717754693686,0.66283967,71312.0,71311.0,0.011946]
[1717754694346,0.59385794,71312.0,71311.0,0.011946]
[1717754695123,0.59463967,71312.0,71311.0,0.011946]
[1717754695338,0.66283967,71312.0,71311.0,0.011946]
[1717754697682,0.59385794,71312.0,71311.0,0.011946]
[1717754697915,0.66283967,71312.0,71311.0,0.011946]
[1717754698144,0.66287621,71312.0,71311.0,0.011946]
[1717754698562,0.59389448,71312.0,71311.0,0.011946]
[1717754698762,0.66287621,71312.0,71311.0,0.011946]
[1717754699690,0.66287621,71312.0,71311.0,0.089946]
[1717754702724,0.65287621,71312.0,71311.0,0.089946]
[1717754702947,0.71187621,71312.0,71311.0,0.011946]
[1717754703378,0.71188682,71312.0,71311.0,0.011946]
[1717754703834,0.99234382,71312.0,71311.0,0.011946]
[1717754704475,0.92414382,71312.0,71311.0,0.011946]
[1717754704708,0.99234382,71312.0,71311.0,0.011946]
[1717754706406,0.86514382,71312.0,71311.0,0.011946]
[1717754706616,0.65288682,71312.0,71311.0,0.087546]
[1717754707446,0.58468682,71312.0,71311.0,0.087546]
[1717754707655,0.65288682,71312.0,71311.0,0.087546]
[1717754708463,0.42763488,71312.0,71311.0,0.087546]
[1717754708661,0.42763488,71312.0,71311.0,0.246246]
[1717754708662,0.30003989,71312.0,71311.0,0.246246]
[1717754711774,0.24105816,71312.0,71311.0,0.246246]
[1717754711986,0.30003989,71312.0,71311.0,0.246246]
[1717754714809,0.30003989,71312.0,71311.0,0.246246]
[1717754718877,0.24105816,71312.0,71311.0,0.246246]
[1717754719091,0.24520872,71312.0,71311.0,0.246246]
[1717754719607,0.24720872,71312.0,71311.0,0.246246]
[1717754723678,0.20086,71312.0,71311.0,0.246246]
[1717754724092,0.24720872,71312.0,71311.0,0.246246]
[1717754727567,0.20086,71312.0,71311.0,0.235246]
[1717754727783,0.20186,71312.0,71311.0,0.389476]
[1717754727998,0.20286,71312.0,71311.0,0.403476]
[1717754728232,0.20286,71312.0,71311.0,0.3962355]
[1717754728480,0.20286,71312.0,71311.0,0.71852377]
[1717754728481,0.00186,71312.0,71311.0,0.71852377]
[1717754728700,0.00186,71312.0,71311.0,0.73943741]
[1717754728924,0.00186,71312.0,71311.0,1.17114916]
[1717754729359,0.00186,71312.0,71311.0,1.17110464]
[1717754729796,0.00186,71312.0,71311.0,1.18510464]
[1717754730455,0.00186,71312.0,71311.0,1.17110464]
[1717754730662,0.00086,71312.0,71311.0,1.17110464]
[1717754731077,0.00086,71312.0,71311.0,1.18510464]
[1717754731517,0.00086,71312.0,71311.0,1.10149462]
[1717754733000,0.00086,71312.0,71311.0,1.38195562]
[1717754733400,0.00086,71312.0,71311.0,1.0711575]
[1717754733880,0.00086,71312.0,71311.0,1.44461093]
[1717754735012,0.00086,71312.0,71311.0,1.38194754]
[1717754735235,0.00086,71312.0,71311.0,1.46549873]
[1717754735673,0.00086,71312.0,71311.0,1.46545462]
[1717754736552,0.00086,71312.0,71311.0,1.38193515]
[1717754737196,0.00086,71312.0,71311.0,2.33694644]
[1717754737411,0.41273357,71320.0,71319.0,0.7078345]
[1717754737630,0.41273357,71320.0,71319.0,1.15467017]
[1717754738066,0.41273357,71320.0,71319.0,1.1129345]
[1717754738534,0.41273357,71320.0,71319.0,1.53778343]
[1717754738796,0.41273357,71320.0,71319.0,1.81314069]
[1717754739020,0.41273357,71320.0,71319.0,2.43567983]
[1717754739238,0.41273357,71320.0,71319.0,2.28002855]
[1717754739444,0.41273357,71320.0,71319.0,1.98910309]
[1717754739658,0.41273357,71320.0,71319.0,1.90563174]
[1717754740121,0.41273357,71320.0,71319.0,2.02397093]
[1717754740330,0.41235537,71320.0,71319.0,1.87652927]
[1717754740532,0.41235537,71320.0,71319.0,1.84852927]
[1717754740958,0.41235537,71320.0,71319.0,1.86252927]
[1717754741849,0.41235537,71320.0,71319.0,1.84852927]
[1717754742063,0.41235537,71320.0,71319.0,1.89163174]
[1717754742268,0.41235537,71320.0,71319.0,1.91963174]
[1717754742472,0.41235537,71320.0,71319.0,2.31488768]
[1717754742600,0.41235537,71320.0,71319.0,2.30088768]
[1717754742811,0.32905537,71320.0,71319.0,2.25778521]
[1717754743019,0.32905537,71320.0,71319.0,2.33788768]
[1717754744264,0.32905537,71320.0,71319.0,2.23354849]
[1717754744919,0.32905537,71320.0,71319.0,1.94263174]
[1717754745758,0.32905537,71320.0,71319.0,2.23354267]
[1717754745984,0.32905537,71320.0,71319.0,2.38919395]
[1717754746470,0.006,71329.0,71328.0,1.2238385]
[1717754746646,0.006,71329.0,71328.0,2.24436361]
[1717754746907,0.006,71329.0,71328.0,2.20419472]
[1717754747358,0.006,71329.0,71328.0,2.2041504]
[1717754747591,0.006,71329.0,71328.0,2.28739388]
[1717754748459,0.006,71329.0,71328.0,2.2181504]
[1717754749369,0.006,71329.0,71328.0,1.92723947]
[1717754749579,0.006,71329.0,71328.0,1.94123947]
[1717754750454,0.006,71329.0,71328.0,1.98064025]
[1717754752317,0.006,71329.0,71328.0,1.66996068]
[1717754753003,0.006,71329.0,71328.0,1.62685821]
[1717754753655,0.00585979,71329.0,71328.0,1.62685821]
[1717754756327,0.00585979,71329.0,71328.0,1.56445743]
[1717754756564,0.00585979,71329.0,71328.0,1.8553258]
[1717754756929,0.00585979,71329.0,71328.0,1.7871258]
[1717754757141,0.00585979,71329.0,71328.0,1.8553258]
[1717754757319,0.00585979,71329.0,71328.0,1.56445743]
[1717754757509,0.00585979,71329.0,71328.0,1.56540343]
[1717754757706,0.00671979,71329.0,71328.0,1.56540343]
[1717754758959,0.00671979,71329.0,71328.0,1.3527845]
[1717754759161,0.00671979,71329.0,71328.0,1.1852845]
[1717754759831,0.00671979,71329.0,71328.0,1.1170845]
[1717754760455,0.10671979,71329.0,71328.0,0.829931]
[1717754761095,0.15306851,71329.0,71328.0,0.829931]
[1717754761307,0.10671979,71329.0,71328.0,0.829931]
[1717754761908,0.10671979,71329.0,71328.0,0.549537]
[1717754761909,0.40300152,71329.0,71328.0,0.549537]
[1717754762277,0.40300152,71329.0,71328.0,0.269143]
[1717754762278,0.10671979,71329.0,71328.0,0.269143]
[1717754762923,0.34401979,71329.0,71328.0,0.269143]
[1717754763366,0.39036851,71329.0,71328.0,0.269143]
[1717754764725,0.38947697,71329.0,71328.0,0.269143]
[1717754766421,0.38947697,71329.0,71328.0,0.325249]
[1717754766576,0.34312825,71329.0,71328.0,0.325249]
[1717754766796,0.10582825,71329.0,71328.0,0.3320085]
[1717754767009,0.10582825,71329.0,71328.0,0.325249]
[1717754768130,0.10582825,71329.0,71328.0,0.3320085]
[1717754768347,0.10582825,71329.0,71328.0,0.325249]
[1717754769230,0.11582825,71329.0,71328.0,0.325249]
[1717754769475,0.11582825,71329.0,71328.0,0.4927085]
[1717754769672,0.11582825,71329.0,71328.0,0.485949]
[1717754769882,0.11582825,71329.0,71328.0,0.4927085]
[1717754770306,0.11582825,71329.0,71328.0,0.485949]
[1717754770744,0.11582825,71329.0,71328.0,0.766343]
[1717754771398,0.11582825,71329.0,71328.0,0.7731025]
[1717754772738,0.11582825,71329.0,71328.0,0.766343]
[1717754773393,0.11582825,71329.0,71328.0,0.80799248]
[1717754773607,0.11,71329.0,71328.0,0.80799248]
[1717754773815,0.10892825,71329.0,71328.0,0.80799248]
[1717754775286,0.10892825,71329.0,71328.0,0.766343]
[1717754775925,0.10892825,71329.0,71328.0,0.605643]
[1717754777460,0.10892825,71329.0,71328.0,0.66811722]
[1717754778089,0.10892825,71329.0,71328.0,0.9788449]
[1717754779246,0.10892825,71329.0,71328.0,0.91637068]
[1717754780441,0.10892825,71329.0,71328.0,0.99966964]
[1717754780660,0.10892825,71329.0,71328.0,1.23906964]
[1717754781321,0.10892825,71329.0,71328.0,1.00642914]
[1717754781535,0.10892825,71329.0,71328.0,0.99966964]
[1717754781750,0.10892825,71329.0,71328.0,0.91637068]
[1717754783527,0.10892825,71329.0,71328.0,1.07027068]
[1717754784873,0.10892825,71329.0,71328.0,0.91637068]
[1717754785080,0.10892825,71329.0,71328.0,0.92313018]
[1717754786097,0.10892825,71329.0,71328.0,0.91637068]
[1717754786427,0.10892825,71329.0,71328.0,1.00283018]
[1717754786635,0.10892825,71329.0,71328.0,1.15673018]
[1717754789740,0.10892825,71329.0,71328.0,1.14997068]
[1717754789909,0.10978825,71329.0,71328.0,1.14997068]
[1717754791280,0.10978825,71329.0,71328.0,1.15673018]
[1717754791488,0.10978825,71329.0,71328.0,1.14997068]
[1717754791932,0.10978825,71329.0,71328.0,1.15673018]
[1717754792799,0.10978825,71329.0,71328.0,1.14997068]
[1717754792996,0.10978825,71329.0,71328.0,1.15673018]
[1717754793222,0.10978825,71329.0,71328.0,1.14997068]
[1717754793438,0.10978825,71329.0,71328.0,1.15673018]
[1717754793651,0.10978825,71329.0,71328.0,1.14997068]
[1717754793858,0.10978825,71329.0,71328.0,1.15673018]
[1717754794063,0.10978825,71329.0,71328.0,0.92313018]
[1717754801762,0.10978825,71329.0,71328.0,0.91637068]
[1717754801987,0.10978825,71329.0,71328.0,1.15743018]
[1717754802401,0.10978825,71329.0,71328.0,1.15067068]
[1717754802622,0.10978825,71329.0,71328.0,1.28237862]
[1717754803739,0.10978825,71329.0,71328.0,1.15743018]
[1717754804488,0.10978825,71329.0,71328.0,1.28280676]
[1717754806992,0.10978825,71329.0,71328.0,1.28280609]
[1717754807452,0.10978825,71329.0,71328.0,1.04850609]
[1717754807684,0.10978825,71329.0,71328.0,1.04174659]
[1717754808430,0.10978825,71329.0,71328.0,1.04850609]
[1717754810808,0.01086,71329.0,71328.0,1.28230609]
[1717754811029,0.01086,71329.0,71328.0,1.15691066]